[Event "Ostravsky Konik FIDE-A 2024"]
[Site "Ostrava"]
[Date "2024.05.05"]
[Round "9.1"]
[White "Nguyen, Piotr"]
[Black "Pourquet, Matthieu"]
[Result "1-0"]
[ECO "B13"]
[WhiteElo "2398"]
[BlackElo "2214"]
[Annotator "TA"]
[PlyCount "117"]
[EventDate "2024.04.26"]
[EventType "swiss"]
[EventCountry "CZE"]
[SourceTitle "playchess.com"]
[Source "ChessBase"]
[SourceQuality "1"]
[TimeControl "40/5400+30:1800+30"]

{[%evp 14,117,25,27,27,22,16,22,19,0,4,10,25,14,9,0,0,0,0,0,0,0,0,0,0,0,195,139,212,219,210,90,96,102,100,120,102,0,6,0,36,0,0,0,0,0,66,66,113,0,21,16,16,14,28,28,31,31,37,37,73,68,65,68,85,85,88,88,96,43,93,88,88,88,103,88,88,88,254,88,127,127,202,135,135,135,379,378,1118,1161,1043,805,29967,29966,29964,29963,5595,4622,29976,29977,29979,29980,29981,29979,29983,29984]} 1. e4 {[%emt 0:00:02]} c6 {[%emt 0:00:29]} 2. d4 {[%emt 0:00:43]} d5 {[%emt 0:00:05]} 3. exd5 {[%emt 0:00:06]} cxd5 {[%emt 0:00:06]} 4. Bd3 {[%emt 0:00:05]} Nf6 {[%emt 0:01:53]} 5. h3 {[%emt 0:02:47]} Nc6 {[%emt 0:00:34]} 6. c3 {[%emt 0:00:07]} e5 {[%emt 0:00:04]} 7. dxe5 {[%emt 0:00:04]} Nxe5 {[%emt 0:00:05]} 8. Nf3 {[%emt 0:00:04]} Nxd3+ {[%emt 0:00:15]} 9. Qxd3 {[%emt 0:00:03]} Bd6 {[%emt 0:00:06]} 10. O-O {[%emt 0:00:52]} O-O {[%emt 0:00:05] The position is equal.} 11. Be3 {[%emt 0:05:43]} Re8 {[%emt 0:11:02][%cal Bf8e8,Be8e6,Be6g6][%mdl 32]} 12. Nbd2 {[%emt 0:05:47]} Ne4 {[%emt 0:10:24] Prevents Bg5.} 13. Rfd1 {[%emt 0:15:57]} Bf5 {[%emt 0:01:49][%cal Oe4f2]} 14. Qb5 {[%emt 0:02:56]} (14. Qxd5 $2 Bh2+ 15. Kxh2 Qxd5 $19) 14... a6 {[%emt 0:13:01]} 15. Qxb7 {[%emt 0:04:12]} (15. Qxd5 $2 Bh2+ 16. Kxh2 Qxd5 $19) 15... Rb8 $1 {[%emt 0:00:43]} 16. Qxa6 {[%emt 0:00:05]} (16. Qxd5 $2 Bh2+ 17. Kxh2 Qxd5 $19) 16... Re6 {[%emt 0:01:48]} 17. Qf1 {[%emt 0:00:56]} Rg6 $1 {[%emt 0:06:45]} 18. Kh1 {[%emt 0:05:59]} (18. Nxe4 Bxe4 19. Qe2 Rxb2 $17) 18... Rxb2 {[%emt 0:03:40]} 19. Nd4 {[%emt 0:05:28]} Qf6 {[%emt 0:12:38]} (19... Bd7 $11 {and Black is okay.}) 20. Nxf5 $18 {[%emt 0:02:32]} Qxf5 {[%emt 0:00:17]} (20... Rxd2 $16 21. Rxd2 (21. Bxd2 Qxf5 22. Be3 Qe5 $11) 21... Qxf5) 21. Nxe4 {[%emt 0:01:44]} Qxe4 {[%emt 0:15:32] [#]} 22. Rd4 {[%emt 0:01:03] Prevents f5} (22. a4 $1 $18 {is the precise move to win.}) 22... Qe5 $16 {[%emt 0:02:10]} 23. Bf4 {[%emt 0:06:13]} Qf5 {[%emt 0:00:24]} 24. Bxd6 {[%emt 0:04:53]} Rxd6 {[%emt 0:00:17]} 25. Kg1 {[%emt 0:04:36]} (25. Rb4 $16 Rxb4 26. cxb4) 25... h5 {[%emt 0:01:27]} 26. g3 {[%emt 0:05:36]} Re6 {[%emt 0:03:25]} 27. Qg2 Ree2 {[%emt 0:00:30][%csl LRa2,LRf2][%cal Re2f2]} 28. Rf1 Rbd2 {[%emt 0:00:30]} 29. Rf4 {[%cal Bd4f4,Bf4f5,Bf5d5][%mdl 32]} Qe5 {[%emt 0:00:30]} ({Better is} 29... Qe6 $11) 30. Qf3 $14 f6 {[%emt 0:00:30]} (30... Rc2 $14 {might be stronger.}) 31. Kg2 (31. Rd4 $16) 31... Rxa2 {[%emt 0:00:30]} (31... Re3 $5 32. Rf5 Rxf3 (32... Qxc3 33. Qf4 $11) 33. Rxe5 Rxc3 34. Rxh5 Rxa2 $15) 32. Rf5 Qe4 {[%emt 0:00:30]} 33. Rxd5 Qxf3+ {[%emt 0:00:30]} 34. Kxf3 $11 {[%mdl 4096] Endgame. KRR-KRR} Rec2 {[%emt 0:00:30]} 35. Rxh5 Rxc3+ {[%emt 0:00:30]} 36. Kg2 Rcc2 {[%emt 0:00:30]} 37. Rf5 Kf7 {[%emt 0:00:30]} 38. h4 Ke6 {[%emt 0:00:30]} 39. g4 g6 {[%emt 0:00:30]} 40. Rf4 Re2 {[%emt 0:00:30]} 41. Kf3 (41. Rc1 $16 {Rc6+ is the strong threat.} Rec2 42. Rb1) 41... Re5 {[%emt 0:30:30]} (41... f5 $14) 42. Rb1 {[#] Threatens to win with Rb6+.} Ra3+ {[%emt 0:00:30]} 43. Kg2 Ra6 {[%emt 0:00:30] Prevents Rb6+} 44. Rb8 Kf7 {[%emt 0:00:30] Prevents Re8} 45. Rc4 Ra2 $2 {[%emt 0:00:30]} (45... Re7 $16 {might work better.}) 46. Kg3 $2 (46. Rc6 $18 {is more deadly.}) 46... Ra3+ {[%emt 0:00:30]} 47. f3 {Black must now prevent Rc6.} Ree3 {[%emt 0:00:30]} (47... Re7 $16) 48. Rb7+ Re7 {[%emt 0:00:30]} 49. Rb6 {And now Rcc6 would win.} f5 $2 {[%emt 0:00:30]} (49... Kg7 $16) 50. g5 $18 Ree3 $2 {[%emt 0:00:30]} (50... Re4 51. Rc7+ Kf8 52. Rf6+ (52. Rxg6 Rg4+ 53. Kf2 Ra2+ 54. Ke3 Ra3+ 55. Kf2 Ra2+ 56. Kf1 Rxh4 $11) (52. Rc8+ Ke7 $18) 52... Ke8 53. Rxg6 Rg4+ 54. Kh2 Rxh4+ 55. Kg2 Kf8 56. Rf6+ Kg8 57. Rxf5 Ra6) 51. Rc7+ Kf8 {[%emt 0:00:30]} 52. Kf4 {Strongly threatening Rf6+.} (52. Rxg6 Rxf3+ 53. Kg2 Rg3+ 54. Kf2 Raf3+ 55. Ke2 Re3+ 56. Kd2 Ra3 $16) 52... Rxf3+ {[%emt 0:00:30]} 53. Ke5 {[%cal Rb6b8]} Rfb3 {[%emt 0:00:30]} 54. Rf6+ ({Not} 54. Rxg6 Ra5+ 55. Kd4 (55. Kf4 $2 Ra4+ 56. Ke5 Rb5+ 57. Kd6 Rb6+ 58. Ke5 Ra5+ 59. Kf4 Rxg6 $19) 55... Rb4+ 56. Kc3 Rxh4 $11) 54... Ke8 {[%emt 0:00:30]} 55. Rxg6 {[%cal Rg6g8]} Ra5+ {[%emt 0:00:30]} 56. Kf6 {[%cal Rg6g8] White mates.} Kd8 {[%emt 0:00:30]} 57. Rf7 {[%cal Rg6g8]} Rb6+ {[%emt 0:00:30]} 58. Kg7 Rb4 {[%emt 0:00:30]} 59. h5 {Weighted Error Value: White=0.17 (very precise) /Black=0.43.  Loses game:     	---       	Black=3      Missed win:     	White=1     	---        Mistake:       	White=4     	Black=6      Inaccurate:     	White=2     	Black=3      OK:         	White=18    	Black=11     Best:        	White=6     	Black=4      Strong:       	---       	Black=2} 1-0

[Event "Ostravsky Konik FIDE-A 2024"]
[Site "Ostrava"]
[Date "2024.05.05"]
[Round "9.2"]
[White "Swicarz, Maciej"]
[Black "Decuigniere, Tom"]
[Result "1-0"]
[ECO "B51"]
[WhiteElo "2251"]
[BlackElo "2401"]
[Annotator "TA"]
[PlyCount "95"]
[EventDate "2024.04.26"]
[EventType "swiss"]
[EventCountry "CZE"]
[SourceTitle "playchess.com"]
[Source "ChessBase"]
[SourceQuality "1"]
[TimeControl "40/5400+30:1800+30"]

{[%evp 9,95,9,15,19,29,13,12,13,11,-9,-4,-6,3,4,0,-25,-19,-48,-48,-58,-48,-100,-40,-91,-43,-75,-81,-96,-103,-111,-103,-113,-79,-114,-96,-157,-149,-204,-185,-233,-218,-218,-179,-191,-169,-214,-201,-218,-225,-230,-229,-229,-229,-235,-169,-191,-178,-232,-232,-235,-232,-238,-200,-204,-209,-202,-196,-196,-197,-197,-167,-197,-198,-195,-198,-205,-170,-187,531,527,521,520,516,487,820,820,804,806]} 1. e4 {[%emt 0:00:05]} c5 {[%emt 0:00:12]} 2. Nf3 {[%emt 0:00:09]} d6 {[%emt 0:00:10]} 3. Bb5+ {[%emt 0:00:11]} Nd7 {[%emt 0:00:36]} 4. c4 {[%emt 0:00:03]} Ngf6 {[%emt 0:01:38]} 5. Nc3 {[%emt 0:00:32]} g6 {[%emt 0:01:51]} 6. O-O {[%emt 0:01:01]} Bg7 {[%emt 0:00:58]} 7. d3 {[%emt 0:00:59]} O-O {[%emt 0:01:28]} 8. Ba4 {[%emt 0:00:17] The position is equal.} Nb6 {[%emt 0:04:56]} 9. h3 {[%emt 0:00:36]} Nxa4 {[%emt 0:07:52]} 10. Qxa4 {[%emt 0:00:03]} a6 {[%emt 0:00:54][%cal Ob7b5]} 11. Qc2 {[%emt 0:01:10]} Bd7 {[%emt 0:04:12]} 12. Bf4 {[%emt 0:04:29]} b5 {[%emt 0:10:03]} 13. Rfe1 {[%emt 0:02:29]} Nh5 {[%emt 0:05:05]} 14. Bd2 {[%emt 0:01:45]} Bc6 {[%emt 0:01:21]} 15. Rad1 {[%emt 0:03:10]} (15. a3 $15) 15... Rb8 {[%emt 0:04:53]} (15... b4 $1 $17 {[%cal Rb4c3]} 16. Nd5 e6) 16. b3 {[%emt 0:04:15]} (16. cxb5 $15 axb5 17. b4) 16... Qd7 {[%emt 0:00:13]} ({Black should try} 16... b4 $17 17. Nd5 e6) 17. Nh2 {[%emt 0:07:35]} f5 {[%emt 0:02:34]} 18. Nd5 {[%emt 0:06:51]} e6 {[%emt 0:02:10]} 19. Ne3 {[%emt 0:01:36]} b4 {[%emt 0:08:20]} 20. Nef1 {[%emt 0:05:37]} Qf7 {[%emt 0:01:33]} 21. Bc1 {[%emt 0:02:40]} e5 {[%emt 0:01:46]} 22. Ng3 {[%emt 0:18:28]} ({White should play} 22. Ne3) 22... Nf4 $1 $17 {[%emt 0:01:13]} 23. Nhf1 {[%emt 0:04:25]} (23. Bxf4 $17 {was necessary.} exf4 24. Ne2) 23... Ne6 $19 {[%emt 0:03:16]} 24. Nh1 {[%emt 0:02:15]} (24. f3 {might work better.}) 24... f4 {[%emt 0:02:54] ...Nd4 would now be deadly.} 25. f3 {[%emt 0:03:17]} h5 {[%emt 0:00:10]} 26. Bb2 {[%emt 0:00:31]} Bf6 {[%emt 0:01:10]} 27. Nh2 {[%emt 0:04:20]} a5 {[%emt 0:01:51] White is weak on the dark squares} 28. Ra1 {[%emt 0:01:14] [#]} a4 $1 {[%emt 0:03:54][%mdl 512]} 29. a3 {[%emt 0:01:32]} bxa3 {[%emt 0:02:14]} 30. Rxa3 {[%emt 0:00:02] [#]} axb3 {[%emt 0:00:11]} 31. Qb1 {[%emt 0:00:02]} Rb6 {[%emt 0:11:09]} 32. Bc3 {[%emt 0:01:32]} Qb7 {[%emt 0:00:03]} 33. Re2 {[%emt 0:00:53]} (33. Qb2 $142) 33... Ra8 {[%emt 0:00:21]} 34. Rxa8+ {[%emt 0:23:26]} Qxa8 {[%emt 0:00:04]} 35. Rb2 {[%emt 0:00:00]} Qa3 {[%emt 0:00:16]} 36. Nf1 {[%emt 0:00:00]} Nd4 {[%emt 0:03:19]} 37. Nf2 {[%emt 0:00:00][%cal Bh1f2,Bf2d1,Bd1c3,Bc3d5][%mdl 32]} Bd8 {[%emt 0:02:09]} 38. Nd1 {[%emt 0:00:00]} Rb7 {[%emt 0:01:19]} 39. Nd2 {[%emt 0:00:00]} Ne2+ {[%emt 0:03:04]} 40. Kf2 {[%emt 0:00:00]} Nxc3 {[%emt 0:02:09]} 41. Nxc3 {[%emt 0:27:27]} Ba5 {[%emt 0:33:52]} 42. Qc1 {[%emt 0:00:00]} Ba4 {[%emt 0:00:00]} 43. Nd5 {[%emt 0:00:00] [#]} Qxb2 $4 {[%emt 0:00:00][%mdl 8192]} 44. Qxb2 $18 {[%emt 0:00:00] White is clearly winning.} Bxd2 {[%emt 0:00:00]} 45. Qxd2 {[%emt 0:00:00]} b2 {[%emt 0:00:00]} 46. Nc3 {[%emt 0:00:00]} b1=Q {[%emt 0:00:00]} (46... g5 $142 47. Nb1 (47. Nxa4 $2 {perishes.} b1=Q $19) 47... Kh7) 47. Nxb1 {[%emt 0:00:00]} Rxb1 {[%emt 0:00:00]} 48. Qa5 {[%emt 0:00:00] Weighted Error Value: White=0.17 (very precise) /Black=0.29 (precise) .  Missed win:     	---       	Black=1      Mistake:       	White=6     	Black=3      Inaccurate:     	White=3     	Black=1      OK:         	White=14    	Black=19     Best:        	White=1     	Black=1      Strong:       	---       	Black=1} 1-0

[Event "Ostravsky Konik FIDE-A 2024"]
[Site "Ostrava"]
[Date "2024.05.05"]
[Round "9.3"]
[White "Chkhaidze, Nikoloz"]
[Black "Meers, Hubert"]
[Result "0-1"]
[ECO "B13"]
[WhiteElo "2268"]
[BlackElo "2250"]
[Annotator "TA"]
[PlyCount "80"]
[EventDate "2024.04.26"]
[EventType "swiss"]
[EventCountry "CZE"]
[SourceTitle "playchess.com"]
[Source "ChessBase"]
[SourceQuality "1"]
[TimeControl "40/5400+30:1800+30"]

{[%evp 23,80,8,10,0,0,0,0,-2,33,0,0,0,0,0,0,0,0,-145,-142,-172,-166,-159,-161,-161,-165,-166,-163,-143,0,0,0,-22,0,-39,0,-57,-48,-47,-50,-137,-89,-132,0,-123,-132,-153,-162,-807,-802,-935,-924,-4814,-4814,-4826,-4820,-1851,-1631,-1304,-1331]} 1. e4 {[%emt 0:00:03]} c6 {[%emt 0:05:49]} 2. d4 {[%emt 0:00:05]} d5 {[%emt 0:00:18]} 3. exd5 {[%emt 0:00:04]} cxd5 {[%emt 0:00:04]} 4. c4 {[%emt 0:00:03]} Nf6 {[%emt 0:00:03]} 5. Nc3 {[%emt 0:00:05]} Nc6 {[%emt 0:00:04]} 6. Nf3 {[%emt 0:00:08]} Bg4 {[%emt 0:00:04]} 7. cxd5 {[%emt 0:02:02]} Nxd5 {[%emt 0:00:05]} 8. Qb3 {[%emt 0:00:10]} Bxf3 {[%emt 0:00:56]} 9. gxf3 {[%emt 0:00:02]} e6 {[%emt 0:01:02]} 10. Qxb7 {[%emt 0:00:09]} Nxd4 {[%emt 0:00:02]} 11. Bb5+ {[%emt 0:00:16]} Nxb5 {[%emt 0:00:04][%cal Bd4b5,Bb5d6,Bd6f5][%mdl 32]} 12. Qc6+ {[%emt 0:00:12]} Ke7 {[%emt 0:00:03]} 13. Qc5+ {[%emt 0:00:22]} Nd6 {[%emt 0:04:01] Threatens to win with ...Nxc3.} 14. Nxd5+ {[%emt 0:00:06]} exd5 {[%emt 0:00:03]} 15. O-O {[%emt 0:00:16] The position is equal.} h6 {[%emt 0:05:37] Against Bg5+} 16. Qxd5 {[%emt 0:05:54]} Kf6 {[%emt 0:01:59]} 17. Rd1 {[%emt 0:17:20]} Qe8 {[%emt 0:11:56] ...Nf5 is the strong threat.} 18. Bf4 {[%emt 0:10:45]} Nf5 {[%emt 0:02:12]} 19. Re1 $1 {[%emt 0:11:31]} Rd8 {[%emt 0:01:25]} 20. Qc4 {[%emt 0:07:00]} (20. Qa5 $1 $11 Qd7 21. Qa6+ Bd6 22. Rad1) 20... Rc8 $1 $17 {[%emt 0:15:47]} (20... Qd7 $6 21. Qa6+ Bd6 22. Rad1 $11) 21. Bc7 {[%emt 0:09:48]} Qd7 {[%emt 0:00:17]} 22. Be5+ {[%emt 0:00:16]} Kg6 {[%emt 0:00:21]} 23. Qg4+ {[%emt 0:01:28]} Kh7 {[%emt 0:00:01] Strongly threatening ...Rc6.} 24. Rad1 {[%emt 0:01:09]} Qe6 {[%emt 0:00:14]} 25. Bxg7 {[%emt 0:01:05] [#]} Rg8 {[%emt 0:17:15]} 26. Rxe6 $11 {[%emt 0:01:29]} fxe6 {[%emt 0:00:19]} 27. Qe4 {[%emt 0:11:58]} Rxg7+ {[%emt 0:00:35]} (27... Re8 $5) 28. Kf1 {[%emt 0:00:07]} Re8 {[%emt 0:09:12]} 29. Rc1 {[%emt 0:00:23]} (29. b4 $11) 29... Bd6 $15 {[%emt 0:01:43]} 30. h3 {[%emt 0:02:28]} Reg8 {[%emt 0:02:21] Hoping for ...Rg1+.} 31. Rc6 {[%emt 0:01:39]} (31. Rd1 $15 Rg1+ 32. Ke2) 31... Rg6 {[%emt 0:01:32]} (31... Rg1+ $142 32. Ke2 Rd8) 32. b4 {[%emt 0:02:42]} Rg1+ {[%emt 0:06:25]} 33. Ke2 {[%emt 0:00:04] [#]} Rd8 {[%emt 0:00:05]} 34. Rc4 {[%emt 0:09:54]} Bf8 {[%emt 0:04:02] And now ...Rdd1 would win. Really sharp! Black is more active.} 35. f4 $2 {[%emt 0:01:13]} (35. Qxe6 Nd4+ 36. Rxd4 Rxd4 37. Qf7+ Bg7 38. Qf5+ Rg6 39. b5) 35... Rdd1 $19 {[%emt 0:00:40] Black is clearly winning.} 36. Qb7+ {[%emt 0:00:21]} Bg7 {[%emt 0:00:12] aiming for ...Rge1+.} 37. b5 {[%emt 0:02:21]} Rge1+ {[%emt 0:00:44]} 38. Kf3 {[%emt 0:00:01]} Rd3+ {[%emt 0:00:08]} 39. Kg2 {[%emt 0:00:52]} Nh4+ {[%emt 0:00:02]} 40. Kh2 {[%emt 0:00:08]} Nf3+ {[%emt 0:00:04] Weighted Error Value: White=0.58/Black=0.12 (very precise) .  Mistake:       	White=4     	Black=2      Inaccurate:     	White=3     	Black=2      OK:         	White=7     	Black=10     Best:        	White=4     	Black=3      Strong:       	White=1     	Black=1} 0-1

[Event "Ostravsky Konik FIDE-A 2024"]
[Site "Ostrava"]
[Date "2024.05.05"]
[Round "9.4"]
[White "Backiel, Hubert"]
[Black "Sernecki, Franciszek"]
[Result "0-1"]
[ECO "B12"]
[WhiteElo "2129"]
[BlackElo "2342"]
[Annotator "TA"]
[PlyCount "82"]
[EventDate "2024.04.26"]
[EventType "swiss"]
[EventCountry "CZE"]
[SourceTitle "playchess.com"]
[Source "ChessBase"]
[SourceQuality "1"]
[TimeControl "40/5400+30:1800+30"]

{[%evp 21,82,50,56,37,64,62,68,63,113,78,73,78,75,87,81,66,64,65,83,90,167,134,247,210,191,54,61,50,50,50,34,0,0,0,493,29,125,-8,-8,-8,-8,-8,0,-364,-329,-546,-549,-592,-585,-535,-509,-635,-651,-708,-704,-777,-753,-975,-970,-1239,-1260,-1081,-1008]} 1. e4 {[%emt 0:06:46]} c6 {[%emt 0:00:01]} 2. d4 {[%emt 0:00:05]} d5 {[%emt 0:00:05]} 3. e5 {[%emt 0:00:02]} Bf5 {[%emt 0:00:06]} 4. Nf3 {[%emt 0:00:05]} e6 {[%emt 0:00:21]} 5. Be2 {[%emt 0:00:02]} Nd7 {[%emt 0:00:55]} 6. O-O {[%emt 0:00:13]} Ne7 {[%emt 0:00:18]} 7. Nh4 {[%emt 0:00:06]} Bg6 {[%emt 0:14:33]} 8. Nd2 {[%emt 0:06:03][%cal Bb1d2,Bd2f3,Bf3g5][%mdl 32]} c5 {[%emt 0:03:31]} 9. c3 {[%emt 0:00:07]} Nc6 {[%emt 0:01:55]} 10. Nxg6 {[%emt 0:01:50]} hxg6 {[%emt 0:00:41]} 11. Nf3 {[%emt 0:00:18]} Be7 {[%emt 0:01:13]} 12. g3 {[%emt 0:00:49]} a6 {[%emt 0:03:38]} 13. Kg2 {[%emt 0:08:49]} b5 {[%emt 0:03:57]} 14. h4 {[%emt 0:04:40] White is slightly better.} b4 {[%emt 0:16:45]} ({Black should play} 14... Qb6 $14) 15. Bg5 {[%emt 0:07:54]} Bxg5 {[%emt 0:11:19]} 16. Nxg5 {[%emt 0:10:06]} Qb6 {[%emt 0:00:32][%cal Rc5d4]} 17. Nf3 {[%emt 0:09:58]} Qa5 {[%emt 0:04:13]} 18. Qc1 {[%emt 0:05:13]} Rb8 {[%emt 0:01:58]} 19. Rh1 {[%emt 0:09:05]} bxc3 {[%emt 0:08:11]} 20. bxc3 {[%emt 0:00:06]} Nb6 {[%emt 0:26:18]} (20... Qb6 $16) 21. Ng5 $1 $18 {[%emt 0:28:43]} Ke7 {[%emt 0:00:30]} (21... cxd4 $2 22. cxd4 (22. Qf4 Rb7 $16) 22... Nc4 (22... Nxd4 23. Qf4 $16) 23. h5) (21... Nd8 $16 {was worth a try.}) 22. Qf4 {[%emt 0:00:30]} Rhf8 {[%emt 0:00:30]} 23. Rab1 {[%emt 0:00:30]} (23. Nh7 $18) 23... Qxc3 $14 {[%emt 0:00:00]} 24. dxc5 {[%emt 0:00:00]} (24. Bxa6 Qxd4 (24... Nxd4 25. a4 $11) 25. Qc1 Nd7 $17 (25... Qxe5 $2 26. Rxb6 Rxb6 27. Qxc5+ Qd6 28. Qxb6 $18) (25... Nxe5 $2 26. Rd1 $18)) 24... Nd7 {[%emt 0:00:00]} 25. Rxb8 {[%emt 0:00:00]} Ndxb8 {[%emt 0:00:00] Excellent horsemanship.} 26. Rb1 {[%emt 0:00:00] Rb7+ would now be deadly.} Nd7 $1 {[%emt 0:00:00]} 27. Rb7 {[%emt 0:00:00]} Ncxe5 $2 {[%emt 0:00:00][%mdl 8192]} (27... Qxc5 $11 28. Bxa6 Na5 29. Rxd7+ (29. Rb5 Qa3 $14) 29... Kxd7) 28. Bxa6 $2 {[%emt 0:00:00]} ({White must play} 28. Nf3 $1 $18 {[%cal Rf3e5]} f6 29. Nxe5 (29. Bxa6 Qxf3+ 30. Qxf3 Nxf3 $14) 29... Qxe5 30. c6 (30. Bxa6 Rc8 $18)) 28... Rb8 {[%emt 0:00:00] [#]} (28... f6 $1 $11 29. Nf3 Qxc5) 29. Rxd7+ {[%emt 0:00:00]} Kxd7 $11 {[%emt 0:00:00]} 30. Nxf7 {[%emt 0:03:30] [#]} Qf3+ $1 {[%emt 0:00:00]} 31. Qxf3 {[%emt 0:00:00]} Nxf3 {[%emt 0:04:30][%mdl 4096] Endgame. KRN-KBN} 32. a4 $2 {[%emt 0:00:00][%mdl 8192]} (32. Kxf3 $11 Rf8 33. Ke3 (33. Bb5+ Ke7 $11) 33... Rxf7 34. Bb5+ Kd8 35. f4) 32... Kc6 $19 {[%emt 0:00:00]} 33. Be2 $2 {[%emt 0:00:00]} ({Much weaker is} 33. Bb5+ Kxc5 34. Kxf3 Rf8) (33. Kxf3 Rf8 34. Bd3 (34. Bb5+ $2 Kxc5 35. Ke2 Rxf7 $19) 34... Rxf7+ 35. Ke3 Kxc5 36. f4) 33... Rf8 {[%emt 0:00:00] Black is clearly winning.} 34. Nd6 {[%emt 0:00:52]} Kxc5 {[%emt 0:00:00] aiming for ...Nd4.} 35. Nb7+ {[%emt 0:00:48]} Kb6 {[%emt 0:00:00] ...Nd4 is the strong threat.} 36. Nd6 {[%emt 0:00:25]} Nd4 {[%emt 0:00:00]} 37. Bd3 {[%emt 0:00:06]} Kc5 {[%emt 0:00:07]} 38. Nb5 {[%emt 0:00:37]} Nxb5 {[%emt 0:00:48]} 39. axb5 {[%emt 0:00:12] [#]} g5 $1 {[%emt 0:00:12]} 40. hxg5 {[%emt 0:00:42]} (40. h5 e5) 40... Kd4 {[%emt 0:00:32]} 41. Bg6 {[%emt 0:02:15]} e5 {[%emt 0:05:42] Weighted Error Value: White=0.87/Black=0.24 (precise) .  Loses game:     	White=1     	Black=1      Missed win:     	White=1     	---        Mistake:       	White=3     	Black=4      Inaccurate:     	White=2     	Black=1      OK:         	White=6     	Black=6      Best:        	White=3     	Black=4      Strong:       	---       	Black=1      Brilliant:      	---       	Black=1} 0-1

[Event "Ostravsky Konik FIDE-A 2024"]
[Site "Ostrava"]
[Date "2024.05.05"]
[Round "9.5"]
[White "Rudolf, Michal"]
[Black "Goluch, Piotr"]
[Result "1-0"]
[ECO "B13"]
[WhiteElo "2268"]
[BlackElo "2325"]
[Annotator "TA"]
[PlyCount "93"]
[EventDate "2024.04.26"]
[EventType "swiss"]
[EventCountry "CZE"]
[SourceTitle "playchess.com"]
[Source "ChessBase"]
[SourceQuality "1"]
[TimeControl "40/5400+30:1800+30"]

{[%evp 12,93,13,17,30,17,41,32,39,48,36,21,80,56,56,52,91,77,92,45,114,95,132,126,129,137,162,156,163,145,151,144,138,156,144,118,130,122,122,125,167,176,200,195,235,233,248,245,292,288,320,308,320,295,307,212,214,214,214,214,214,214,220,206,216,218,218,225,218,225,220,220,343,343,377,360,394,397,466,446,575,576,608,591]} 1. e4 {[%emt 0:00:12]} c6 {[%emt 0:00:05]} 2. d4 {[%emt 0:00:52]} d5 {[%emt 0:00:04]} 3. exd5 {[%emt 0:00:47]} cxd5 {[%emt 0:00:04]} 4. Bd3 {[%emt 0:00:06]} Nc6 {[%emt 0:00:13]} 5. c3 {[%emt 0:00:05]} Nf6 {[%emt 0:00:05]} 6. Bf4 {[%emt 0:00:07]} Bg4 {[%emt 0:00:10]} 7. Qb3 {[%emt 0:00:02]} e5 {[%emt 0:07:28] [#] White must now prevent ...Na5.} 8. h3 {[%emt 0:01:14]} exf4 {[%emt 0:00:50]} 9. hxg4 {[%emt 0:00:10]} Qe7+ {[%emt 0:03:24] White is slightly better.} 10. Kf1 {[%emt 0:05:50]} O-O-O {[%emt 0:00:56][%cal Oc8b8]} 11. Nd2 {[%emt 0:00:58]} g6 {[%emt 0:05:03]} (11... g5 $1 $11 {keeps the balance.}) 12. Re1 $16 {[%emt 0:02:35]} Qc7 {[%emt 0:01:16]} 13. g5 $36 {[%emt 0:00:30][%mdl 2048] White is more active.} Ng4 {[%emt 0:07:52]} 14. Qd1 {[%emt 0:14:00]} h5 {[%emt 0:01:01]} 15. gxh6 {[%emt 0:07:01]} (15. Be2 $16 f5 16. gxf6 Nxf6 17. Ngf3) 15... f5 {[%emt 0:00:54]} (15... Nxh6 $14 16. Ngf3 Kb8) 16. Qe2 {[%emt 0:02:43]} Rd6 {[%emt 0:19:10] Inhibits Qe6+.} 17. Qe8+ {[%emt 0:06:24]} Qd8 {[%emt 0:00:16]} 18. Qxd8+ {[%emt 0:03:17]} Kxd8 {[%emt 0:04:16]} 19. h7 {[%emt 0:13:24]} Nf6 {[%emt 0:01:47]} 20. Ne2 {[%emt 0:02:33]} Rxh7 {[%emt 0:00:06]} 21. Rxh7 {[%emt 0:00:22]} Nxh7 {[%emt 0:00:03]} 22. Nxf4 {[%emt 0:00:52]} Bh6 {[%emt 0:00:04]} 23. g3 {[%emt 0:06:39] White is more active.} Bxf4 {[%emt 0:02:50]} 24. gxf4 {[%emt 0:00:24]} Nf6 {[%emt 0:00:04]} 25. Kg2 {[%emt 0:01:36]} Nh5 {[%emt 0:00:09]} 26. Kf3 {[%emt 0:00:20]} a6 {[%emt 0:00:21][%cal Ba7a6,Ba6a5][%mdl 32]} 27. Nb3 {[%emt 0:03:41]} Rf6 {[%emt 0:11:28]} 28. Nc5 {[%emt 0:00:56]} Kc7 {[%emt 0:00:05]} 29. Bc2 {[%emt 0:01:27]} a5 {[%emt 0:10:33]} 30. Bb3 {[%emt 0:00:59]} b6 {[%emt 0:00:16]} 31. Nd3 {[%emt 0:00:18]} Kd6 {[%emt 0:00:16]} 32. Re8 {[%emt 0:06:15] Repels Rf8} Re6 {[%emt 0:01:26] Repels Ne5} 33. Rxe6+ {[%emt 0:07:22]} Kxe6 $18 {[%emt 0:00:02][%mdl 4096] Endgame. KBN-KNN} 34. Ba4 {[%emt 0:01:53]} Ne7 {[%emt 0:02:22]} 35. Ne5 {[%emt 0:00:11]} Nf6 {[%emt 0:00:21]} 36. Bb5 {[%emt 0:00:49]} Kd6 {[%emt 0:01:43]} 37. Ke3 {[%emt 0:01:16]} Ke6 {[%emt 0:00:21]} 38. f3 {[%emt 0:00:57]} Kd6 {[%emt 0:00:09]} 39. b3 {[%emt 0:00:42][%cal Bb2b3,Bb3c4][%mdl 32]} Ke6 {[%emt 0:00:06]} 40. c4 {[%emt 0:00:16] [#] aiming for c5.} Kd6 {[%emt 0:00:05]} 41. a3 {[%emt 0:30:15]} dxc4 {[%emt 0:33:03]} (41... Kc7 {is a better defense.} 42. c5 Kc8) 42. bxc4 {[%emt 0:00:39]} Nh7 {[%emt 0:02:28]} 43. Be8 {[%emt 0:00:35]} Nf8 {[%emt 0:01:04]} 44. Bf7 {[%emt 0:01:00]} (44. Nf7+ Ke6 45. Ne5 (45. d5+ Nxd5+ 46. cxd5+ Ke7 $18) 45... Kf6 $18) 44... Kc7 {[%emt 0:04:58]} 45. d5 {[%emt 0:04:33] White is clearly winning.} Kd6 {[%emt 0:00:18]} 46. Kd4 {[%emt 0:00:06]} Nc8 {[%emt 0:00:05]} 47. Bxg6 {[%emt 0:06:47] Weighted Error Value: White=0.10 (very precise) /Black=0.24 (precise) .  Mistake:       	White=1     	Black=3      Inaccurate:     	White=1     	Black=3      OK:         	White=23    	Black=10     Best:        	White=1     	Black=2} 1-0